bitfinex-derivatives/quotes_SOLF0:USTF0_20241226
["timestamp","ask_amount","ask_price","bid_price","bid_amount"]
[1735199114991,12.81576093,193.7,193.57,16.07496093]
[1735199116089,2.5844,193.63,193.57,18.66016093]
[1735199116297,12.81576093,193.67,193.57,3.2592]
[1735199116482,3.3,193.71,193.57,16.07496093]
[1735199116683,2.5841,193.65,193.6,2.5848]
[1735199116990,3.3,193.7,193.57,16.07496093]
[1735199117896,12.81576093,193.71,193.57,16.07496093]
[1735199118193,2.5837,193.68,193.61,2.5845]
[1735199118393,12.81576093,193.71,193.57,16.07496093]
[1735199118693,12.81576093,193.68,193.57,3.2592]
[1735199118898,3.3,193.67,193.57,3.2592]
[1735199120601,2.5843,193.64,193.58,2.585]
[1735199122398,2.5845,193.63,193.58,2.585]
[1735199122601,2.5845,193.63,193.57,5.8444]
[1735199122900,3.3,193.67,193.57,3.2592]
[1735199123100,12.81576093,193.65,193.55,1.5569]
[1735199123395,12.81576093,193.65,193.55,4.1423]
[1735199123595,12.81576093,193.65,193.55,1.5569]
[1735199123797,12.81576093,193.65,193.52,1.6294]
[1735199124100,12.81576093,193.65,193.53,2.5857]
[1735199124797,2.585,193.59,193.53,2.5857]
[1735199126302,12.81576093,193.65,193.52,3.1897]
[1735199126502,3.3,193.67,193.52,3.1897]
[1735199126503,12.81576093,193.62,193.52,3.1897]
[1735199126800,2.5857,193.54,193.49,2.5861]
[1735199127197,12.81576093,193.59,193.48,12.81576093]
[1735199127394,12.81576093,193.59,193.46,3.3]
[1735199127595,12.81576093,193.59,193.47,2.5864]
[1735199128402,2.5858,193.53,193.47,2.5864]
[1735199129202,2.5858,193.53,193.45,16.11576093]
[1735199129507,2.5858,193.53,193.48,2.5864]
[1735199130409,12.81576093,193.59,193.48,2.5864]
[1735199130703,2.5859,193.52,193.48,2.5864]
[1735199131100,2.5859,193.52,193.45,16.11576093]
[1735199131101,12.81576093,193.59,193.45,16.11576093]
[1735199131400,12.81576093,193.62,193.48,12.81576093]
[1735199131907,2.5851,193.58,193.52,2.5858]
[1735199132105,2.5851,193.58,193.48,12.81576093]
[1735199132507,2.5851,193.58,193.53,2.5856]
[1735199133207,2.5851,193.58,193.48,12.81576093]
[1735199133407,2.5851,193.58,193.54,2.5856]
[1735199134508,2.5851,193.58,193.53,2.5857]
[1735199136405,2.5851,193.58,193.54,2.5856]
[1735199137308,2.5848,193.6,193.55,2.5853]
[1735199138508,3.3,193.66,193.54,12.81576093]
[1735199138709,16.11576093,193.68,193.54,12.81576093]
[1735199139009,2.5849,193.6,193.54,2.5855]
[1735199139209,12.81576093,193.65,193.54,2.5855]
[1735199139609,2.585,193.59,193.54,2.5855]
[1735199139811,2.585,193.59,193.55,2.5854]
[1735199140205,8.20742476,193.62,193.55,2.5854]
[1735199140406,2.5848,193.6,193.55,2.5854]
[1735199141705,2.5848,193.6,193.56,2.5853]
[1735199143605,2.5847,193.61,193.56,2.5853]
[1735199144307,2.5847,193.61,193.57,2.5852]
[1735199145402,2.5847,193.61,193.54,8.20742476]
[1735199145605,8.20742476,193.6,193.56,2.5853]
[1735199145808,8.20742476,193.6,193.53,3.156]
[1735199146309,8.20742476,193.58,193.53,3.156]
[1735199147015,2.5853,193.57,193.53,3.156]
[1735199147212,8.20742476,193.58,193.53,3.156]
[1735199147612,28.55606286,193.64,193.55,8.20742476]
[1735199147809,7.13901571,193.62,193.55,8.20742476]
[1735199148214,2.5848,193.6,193.55,10.79282476]
[1735199148416,2.5848,193.6,193.55,8.20742476]
[1735199148618,15.34644047,193.62,193.55,8.20742476]
[1735199148811,8.20742476,193.62,193.55,8.20742476]
[1735199149007,2.5851,193.58,193.53,13.94912476]
[1735199149214,8.20742476,193.6,193.53,3.156]
[1735199150413,2.5854,193.56,193.53,3.156]
[1735199150909,2.5851,193.58,193.53,3.156]
[1735199151115,8.20742476,193.58,193.53,3.156]
[1735199152113,8.20742476,193.58,193.5,8.20742476]
[1735199152320,19.969564,193.59,193.47,3.3]
[1735199152917,19.969564,193.59,193.46,12.83054829]
[1735199153114,19.969564,193.59,193.46,16.13054829]
[1735199153518,12.83054829,193.56,193.46,3.3]
[1735199154420,2.5858,193.53,193.48,2.5864]
[1735199156716,2.5859,193.52,193.48,2.5864]
[1735199158224,2.5857,193.54,193.49,2.5861]
[1735199160728,2.5857,193.54,193.5,2.5861]
[1735199162115,2.5855,193.56,193.5,2.5861]
[1735199162320,2.5855,193.56,193.51,2.586]
[1735199163327,41.38661115,193.59,193.48,3.235]
[1735199163624,2.5852,193.57,193.52,2.5858]
[1735199164725,2.5854,193.56,193.52,2.5858]
[1735199168731,2.5851,193.58,193.54,2.5856]
[1735199168921,19.969564,193.62,193.52,3.3]
[1735199169122,7.13901571,193.62,193.52,3.3]
[1735199169428,2.5849,193.59,193.55,2.5853]
[1735199172230,12.83054829,193.62,193.52,2.5858]
[1735199172730,2.5853,193.57,193.52,2.5858]
[1735199173427,2.5853,193.57,193.48,6.535]
[1735199174129,2.5853,193.57,193.5,8.21071769]
[1735199174629,2.5853,193.57,193.53,2.5857]
[1735199175030,2.5851,193.59,193.54,2.5855]
[1735199175237,8.21071769,193.57,193.5,8.21071769]
[1735199175423,8.21071769,193.55,193.48,3.235]
[1735199175622,8.21071769,193.53,193.48,3.235]
[1735199176429,2.5859,193.52,193.48,5.8214]
[1735199179838,8.21071769,193.53,193.48,3.235]
[1735199180034,10.79651769,193.53,193.49,2.5862]
[1735199181534,28.55606286,193.59,193.48,11.44571769]
[1735199181730,8.21071769,193.56,193.5,8.21071769]
[1735199182233,8.21071769,193.56,193.51,2.5859]
[1735199182434,8.21071769,193.56,193.5,8.21071769]
[1735199183536,10.79611769,193.56,193.52,2.5857]
[1735199183840,8.21071769,193.56,193.52,2.5857]
[1735199184035,2.5855,193.55,193.52,2.5857]
[1735199184740,10.79611769,193.56,193.52,2.5857]
[1735199186438,2.5855,193.55,193.52,2.5857]
[1735199187839,2.5856,193.54,193.5,2.586]
[1735199188039,8.21071769,193.56,193.48,11.44571769]
[1735199188240,8.21071769,193.58,193.5,8.21071769]
[1735199188941,8.21071769,193.58,193.49,8.21071769]
[1735199189841,2.5854,193.56,193.49,8.21071769]
[1735199191343,7.13901571,193.6,193.53,8.21071769]
[1735199191746,10.79561769,193.6,193.55,2.5854]
[1735199192854,8.21071769,193.58,193.52,3.28]
[1735199193148,8.21071769,193.6,193.52,3.28]
[1735199193350,8.21071769,193.6,193.51,11.49071769]
[1735199193541,2.5848,193.6,193.57,2.5852]
[1735199193745,2.5848,193.6,193.53,8.21071769]
[1735199194355,8.21071769,193.59,193.51,11.49071769]
[1735199194952,8.21071769,193.59,193.53,2.5856]
[1735199195153,2.5853,193.57,193.53,2.5856]
[1735199195750,10.79601769,193.57,193.53,2.5856]
[1735199196052,2.5854,193.56,193.51,2.5859]
[1735199196249,2.5854,193.56,193.49,8.21071769]
[1735199196453,2.5854,193.56,193.48,6.515]
[1735199196454,10.79631769,193.55,193.5,2.5861]
[1735199196644,8.21071769,193.55,193.5,2.5861]
[1735199197951,2.5857,193.54,193.5,2.5861]
[1735199198652,3.28,193.59,193.49,8.21071769]
[1735199198949,11.49071769,193.59,193.51,8.21071769]
[1735199199149,8.21071769,193.57,193.51,8.21071769]
[1735199199345,2.5851,193.58,193.54,2.5855]
[1735199199542,2.5851,193.58,193.51,8.21071769]
[1735199199948,28.55606286,193.62,193.51,11.49071769]
[1735199200156,8.21071769,193.6,193.57,2.5851]
[1735199200756,2.5847,193.61,193.58,2.5851]
[1735199200958,17.9343334,193.62,193.58,2.5851]
[1735199202361,10.79531769,193.62,193.58,2.5851]
[1735199204167,3.28,193.66,193.55,8.21071769]
[1735199204357,8.21071769,193.62,193.59,2.5849]
[1735199205462,8.21071769,193.62,193.57,2.5852]
[1735199205865,28.55606286,193.67,193.55,8.21071769]
[1735199206160,8.21071769,193.64,193.56,4.7133]
[1735199206368,28.55606286,193.66,193.57,8.21071769]
[1735199206564,8.21071769,193.65,193.57,8.21071769]
[1735199206760,8.21071769,193.63,193.56,4.7133]
[1735199207264,10.79511769,193.63,193.58,2.5849]
[1735199207564,10.79511769,193.63,193.59,2.5848]
[1735199207766,8.21071769,193.63,193.56,4.7133]
[1735199208263,10.79481769,193.66,193.57,11.49071769]
[1735199208861,10.79481769,193.66,193.62,2.5845]
[1735199212459,1.91192929,193.72,193.61,8.21071769]
[1735199212663,8.21071769,193.7,193.63,8.21071769]
[1735199212864,8.21071769,193.7,193.64,3.1349]
[1735199213066,12.70594698,193.72,193.67,2.5838]
[1735199213358,8.21071769,193.7,193.64,3.1349]
[1735199213559,8.21071769,193.68,193.63,3.28]
[1735199213760,2.5842,193.65,193.6,2.5848]
[1735199213962,8.21071769,193.68,193.59,11.49071769]
[1735199214665,2.5841,193.66,193.61,2.5845]
[1735199215864,8.21071769,193.68,193.62,2.5844]
[1735199216469,2.584,193.67,193.62,2.5844]
[1735199216967,2.584,193.67,193.63,10.79511769]
[1735199217661,1.91192929,193.72,193.65,8.21071769]
[1735199217868,8.21071769,193.73,193.65,8.21071769]
[1735199218069,2.5836,193.7,193.66,2.584]
[1735199218267,8.21071769,193.73,193.65,8.21071769]
[1735199218861,2.5837,193.69,193.65,10.79481769]
[1735199219970,8.21071769,193.71,193.59,3.28]
[1735199220164,8.21071769,193.71,193.57,3.1349]
[1735199220365,8.21071769,193.69,193.61,8.21071769]
[1735199220869,2.5841,193.66,193.62,2.5845]
[1735199221071,8.21071769,193.71,193.63,8.21071769]
[1735199221671,2.5838,193.68,193.63,8.21071769]
[1735199222571,2.5838,193.68,193.64,2.5842]
[1735199222869,8.21071769,193.71,193.63,8.21071769]
[1735199223273,3.28,193.72,193.61,8.21071769]
[1735199223274,8.21071769,193.69,193.61,8.21071769]
[1735199224370,8.21071769,193.71,193.63,8.21071769]
[1735199225375,8.21071769,193.71,193.63,10.79501769]
[1735199225571,8.21071769,193.71,193.63,8.21071769]
[1735199225772,2.584,193.67,193.63,8.21071769]
[1735199226072,8.21071769,193.71,193.63,8.21071769]
[1735199226570,8.21071769,193.69,193.61,8.21071769]
[1735199226870,2.5839,193.67,193.61,10.79531769]
[1735199227083,8.21071769,193.69,193.61,10.79531769]
[1735199227374,8.21071769,193.71,193.63,8.21071769]
[1735199227974,2.5838,193.68,193.63,10.79501769]
[1735199228167,8.21071769,193.71,193.63,10.79501769]
[1735199228369,8.21071769,193.71,193.66,2.584]
[1735199228370,2.5836,193.7,193.66,2.584]
[1735199228871,2.5837,193.69,193.65,2.5841]
[1735199229071,8.21071769,193.71,193.63,8.21071769]
[1735199229371,31.83606286,193.75,193.61,8.21071769]
[1735199229372,8.21071769,193.69,193.61,8.21071769]
[1735199229570,8.21071769,193.67,193.59,8.21071769]
[1735199230176,2.5843,193.64,193.6,2.5848]
[1735199232780,2.5844,193.63,193.59,10.79561769]
[1735199232976,8.21071769,193.67,193.59,10.79561769]
[1735199232977,8.21071769,193.67,193.59,8.21071769]
[1735199233474,2.5846,193.62,193.57,13.93071769]
[1735199233678,2.5846,193.62,193.57,11.34561769]
[1735199234178,2.5846,193.62,193.58,2.585]
[1735199234575,8.21071769,193.65,193.57,11.34561769]
[1735199234778,2.5848,193.61,193.57,11.34561769]
[1735199235675,8.21071769,193.65,193.57,11.34561769]
[1735199235977,2.5849,193.6,193.57,11.34561769]
[1735199236173,2.5849,193.6,193.57,3.1349]
[1735199242786,2.5849,193.6,193.56,10.79591769]
[1735199246087,8.21071769,193.63,193.56,8.21071769]
[1735199246379,8.21071769,193.61,193.46,4.8798]
[1735199246582,8.21071769,193.61,193.52,8.21071769]
[1735199246780,2.5853,193.57,193.52,10.79641769]
[1735199247182,2.5853,193.57,193.52,8.21071769]
[1735199247582,2.5853,193.56,193.52,10.79651769]
[1735199249477,8.21071769,193.61,193.52,8.21071769]
[1735199249884,8.21071769,193.59,193.51,2.5859]
[1735199250086,8.21071769,193.59,193.51,10.79661769]
[1735199250782,2.5855,193.55,193.51,10.79661769]
[1735199252289,8.21071769,193.59,193.51,10.79671769]
[1735199253689,2.5855,193.55,193.51,10.79671769]
[1735199254988,2.5856,193.54,193.51,10.79671769]
[1735199258191,2.5859,193.52,193.49,2.5862]
[1735199258395,10.41901571,193.62,193.5,8.21071769]
[1735199258591,8.21071769,193.59,193.5,8.21071769]
[1735199258987,8.21071769,193.59,193.52,8.21071769]
[1735199259488,2.5853,193.56,193.52,10.79651769]
[1735199259692,2.5853,193.56,193.52,8.21071769]
[1735199262385,2.5853,193.56,193.52,10.79651769]
[1735199264994,2.5853,193.56,193.52,2.5858]
[1735199266888,2.5853,193.56,193.5,8.21071769]
[1735199267388,8.21071769,193.59,193.5,8.21071769]
[1735199267593,2.5855,193.55,193.52,2.5858]
[1735199268695,8.21071769,193.59,193.5,8.21071769]
[1735199268886,2.5853,193.57,193.53,2.5857]
[1735199269697,8.21071769,193.59,193.53,2.5857]
[1735199269997,2.5854,193.56,193.53,2.5857]
[1735199270696,28.55606286,193.61,193.54,8.21071769]
[1735199270892,28.55606286,193.61,193.56,8.21071769]
[1735199271099,28.55606286,193.61,193.58,10.79571769]
[1735199271901,28.55606286,193.64,193.58,10.79571769]
[1735199272601,2.5846,193.62,193.58,10.79571769]
[1735199273999,8.21071769,193.65,193.58,10.79571769]
[1735199274000,2.5841,193.65,193.61,2.5846]
[1735199274195,15.3497334,193.67,193.6,8.21071769]
[1735199274595,2.5842,193.65,193.6,8.21071769]
[1735199274801,15.3497334,193.67,193.6,8.21071769]
[1735199275305,8.21071769,193.67,193.6,8.21071769]
[1735199275497,2.5843,193.64,193.6,8.21071769]
[1735199276006,2.5841,193.66,193.6,8.21071769]
[1735199276501,2.5841,193.66,193.61,2.5846]
[1735199276905,2.5841,193.66,193.6,8.21071769]
[1735199277308,2.5841,193.66,193.61,3.2493]
[1735199278205,15.3497334,193.69,193.62,8.21071769]
[1735199278406,2.5839,193.67,193.63,2.5843]
[1735199279008,28.55606286,193.7,193.61,3.2493]
[1735199279009,31.13966286,193.7,193.65,2.584]
[1735199279602,28.55606286,193.7,193.65,2.584]
[1735199279801,2.5836,193.69,193.65,2.584]
[1735199280107,8.21071769,193.72,193.65,2.584]
[1735199280304,7.13901571,193.75,193.66,8.21071769]
[1735199280506,7.13901571,193.75,193.69,8.21071769]
[1735199280906,2.5829,193.74,193.68,2.5836]
[1735199281106,2.5829,193.74,193.69,8.21071769]
[1735199281306,8.21071769,193.74,193.67,8.21071769]
[1735199281912,8.21071769,193.74,193.67,10.79461769]
[1735199281913,2.5832,193.72,193.67,10.79461769]
[1735199282109,8.21071769,193.74,193.67,8.21071769]
[1735199282306,8.21071769,193.76,193.68,3.1508]
[1735199282909,2.5829,193.75,193.69,2.5835]
[1735199283904,8.21071769,193.76,193.69,2.5835]
[1735199284110,2.583,193.74,193.69,2.5835]
[1735199284513,2.583,193.74,193.7,2.5834]
[1735199285112,2.5828,193.76,193.69,9.80311769]
[1735199285312,2.5828,193.76,193.72,2.5832]
[1735199285711,8.21071769,193.77,193.69,9.80311769]
[1735199286108,7.13901571,193.85,193.71,8.21071769]
[1735199286109,8.21071769,193.79,193.71,8.21071769]
[1735199286509,2.5825,193.78,193.73,2.583]
[1735199287315,8.21071769,193.77,193.7,3.28]
[1735199287513,8.21071769,193.75,193.68,3.1508]
[1735199287709,8.21071769,193.73,193.68,3.1508]
[1735199288113,2.5834,193.71,193.68,3.1508]
[1735199288512,2.5835,193.7,193.68,3.1508]
[1735199288914,8.21071769,193.72,193.68,3.1508]
[1735199289115,10.79401769,193.72,193.68,3.1508]
[1735199289317,8.21071769,193.72,193.68,3.1508]
[1735199289918,2.5836,193.7,193.68,3.1508]
[1735199290221,8.21071769,193.72,193.68,3.1508]
[1735199290415,2.5833,193.72,193.68,3.1508]
[1735199290721,8.21071769,193.76,193.68,11.36151769]
[1735199291220,8.21071769,193.74,193.68,3.1508]
[1735199291421,3.28,193.81,193.64,8.21071769]
[1735199291616,8.21071769,193.73,193.65,3.09]
[1735199292014,2.5833,193.71,193.66,2.5839]
[1735199292716,3.28,193.81,193.65,3.09]
[1735199292921,8.21071769,193.73,193.67,2.5837]
[1735199293220,8.21071769,193.73,193.66,8.21071769]
[1735199293423,8.21071769,193.75,193.68,8.21071769]
[1735199293716,2.583,193.74,193.69,2.5835]
[1735199294122,2.583,193.74,193.68,8.21071769]
[1735199295220,2.5831,193.73,193.68,8.21071769]
[1735199296119,8.21071769,193.75,193.68,10.79441769]
[1735199296425,2.5835,193.7,193.67,3.28]
[1735199296626,8.21071769,193.73,193.67,3.28]
[1735199296823,2.5833,193.72,193.67,5.8637]
[1735199297021,8.21071769,193.73,193.67,5.8637]
[1735199298122,8.21071769,193.73,193.67,3.28]
[1735199298625,8.21071769,193.73,193.66,8.21071769]
[1735199298824,2.5837,193.69,193.66,8.21071769]
[1735199299526,8.21071769,193.73,193.66,8.21071769]
[1735199300129,2.5832,193.72,193.68,2.5837]
[1735199300526,57.11212573,193.83,193.7,8.21071769]
[1735199300527,28.55606286,193.83,193.7,8.21071769]
[1735199300726,10.79331769,193.77,193.72,2.5831]
[1735199301737,2.5827,193.76,193.72,2.5831]
[1735199301940,8.21071769,193.79,193.73,2.5829]
[1735199302735,2.5824,193.78,193.73,2.5829]
[1735199305233,2.5824,193.78,193.7,8.21071769]
[1735199305838,2.582,193.81,193.72,8.21071769]
[1735199306033,8.21071769,193.81,193.72,8.21071769]
[1735199306238,8.21071769,193.81,193.73,3.1892]
[1735199306441,2.5822,193.8,193.76,2.5827]
[1735199306635,2.5822,193.8,193.73,3.1892]
[1735199306842,8.21071769,193.81,193.73,11.39991769]
[1735199308347,2.5823,193.79,193.75,2.5827]
[1735199308841,2.5821,193.81,193.75,8.21071769]
[1735199309150,3.28,193.86,193.75,8.21071769]
[1735199309151,8.21071769,193.82,193.75,8.21071769]
[1735199309649,2.5821,193.8,193.75,10.79341769]
[1735199311345,2.5821,193.8,193.76,2.5825]
[1735199312448,10.41901571,193.86,193.77,2.5824]
[1735199312747,8.21071769,193.83,193.77,10.79311769]
[1735199313650,2.582,193.81,193.77,10.79311769]
[1735199313850,70.4065846,193.87,193.78,2.5824]
[1735199314044,2.5815,193.85,193.81,8.21071769]
[1735199314246,8.21071769,193.86,193.79,8.21071769]
[1735199314440,8.21071769,193.84,193.77,8.21071769]
[1735199314746,2.5822,193.8,193.75,11.49071769]
[1735199315452,2.5822,193.8,193.76,2.5826]
[1735199315747,2.582,193.81,193.75,11.49071769]
[1735199316147,8.21071769,193.82,193.77,2.5824]
[1735199316355,10.79241769,193.84,193.77,8.21071769]
[1735199316854,10.79241769,193.84,193.79,2.5822]
[1735199317455,2.5817,193.84,193.8,2.582]
[1735199317652,2.5814,193.86,193.79,8.21071769]
[1735199317845,8.21071769,193.87,193.79,8.21071769]
[1735199319353,2.5816,193.84,193.8,2.582]
[1735199319754,8.21071769,193.87,193.79,8.21071769]
[1735199320250,2.5813,193.87,193.81,8.21071769]
[1735199320851,2.5813,193.87,193.83,2.5816]
[1735199322456,2.5813,193.87,193.84,2.5816]
[1735199323357,2.5816,193.85,193.8,8.21071769]
[1735199323757,2.5816,193.85,193.81,2.582]
[1735199324659,7.13901571,193.92,193.8,8.21071769]
[1735199324856,7.13901571,193.92,193.84,8.21071769]
[1735199325158,8.21071769,193.91,193.83,3.26]
[1735199325360,2.5812,193.88,193.83,2.5816]
[1735199326162,2.5809,193.9,193.84,8.21071769]
[1735199327362,7.13901571,193.93,193.87,2.5812]
[1735199327363,8.21071769,193.91,193.87,2.5812]
[1735199327562,15.3497334,193.93,193.87,2.5812]
[1735199327961,8.21071769,193.93,193.87,2.5812]
[1735199328165,2.5807,193.91,193.87,2.5812]
[1735199328962,10.79141769,193.91,193.87,2.5812]
[1735199329363,2.5809,193.9,193.85,2.5813]
[1735199329559,2.5809,193.9,193.84,8.21071769]
[1735199330468,2.5809,193.9,193.86,2.5813]
[1735199332065,2.5809,193.9,193.87,2.5812]
[1735199332266,2.5809,193.9,193.84,8.21071769]
[1735199332469,2.5809,193.9,193.82,12.99791769]
[1735199332767,10.35941022,193.97,193.86,8.21071769]
[1735199332969,2.5806,193.92,193.86,8.21071769]
[1735199333364,2.5806,193.92,193.88,2.5811]
[1735199334064,10.35941022,193.97,193.86,8.21071769]
[1735199334266,2.5804,193.93,193.86,8.21071769]
[1735199334965,2.5804,193.93,193.88,2.581]
[1735199335169,2.5804,193.93,193.86,8.21071769]
[1735199335767,2.5804,193.93,193.89,2.5809]
[1735199338574,8.21071769,193.94,193.86,8.21071769]
[1735199339572,2.5808,193.9,193.87,2.5811]
[1735199340666,2.5803,193.94,193.87,2.5811]
[1735199340868,8.21071769,193.94,193.86,8.21071769]
[1735199341168,31.77645737,193.97,193.88,8.21071769]
[1735199341375,39.98717506,193.97,193.88,8.21071769]
[1735199341970,11.4311122,193.97,193.88,8.21071769]
[1735199342467,2.5803,193.94,193.9,2.5807]
[1735199344577,3.22039451,193.97,193.92,8.21071769]
[1735199345475,5.80029451,193.97,193.93,2.5804]
[1735199345878,3.22039451,193.97,193.92,8.21071769]
[1735199346375,3.22039451,193.97,193.9,11.47071769]
[1735199346674,11.4311122,193.97,193.82,4.7872]
[1735199346873,11.4311122,193.97,193.87,8.21071769]
[1735199346874,8.21071769,193.95,193.87,8.21071769]
[1735199347077,8.21071769,193.91,193.82,4.7872]
[1735199347281,2.5814,193.86,193.82,12.99791769]
[1735199347777,2.5814,193.86,193.82,15.57971769]
[1735199348179,8.21071769,193.87,193.79,8.21071769]
[1735199348480,8.21071769,193.84,193.77,8.21071769]
[1735199349372,2.5819,193.82,193.77,8.21071769]
[1735199349778,8.21071769,193.82,193.71,1.6215]
[1735199349981,8.21071769,193.82,193.74,8.21071769]
[1735199350476,10.79251769,193.83,193.77,2.5825]
[1735199350676,28.55606286,193.85,193.78,8.21071769]
[1735199351075,2.5816,193.84,193.78,10.79301769]
[1735199351573,28.55606286,193.85,193.78,8.21071769]
[1735199351782,2.5815,193.85,193.79,2.5822]
[1735199353080,2.5816,193.84,193.78,8.21071769]
[1735199353678,2.5814,193.86,193.8,2.5821]
[1735199353971,8.21071769,193.86,193.8,2.5821]
[1735199354181,2.5815,193.85,193.79,2.5822]
[1735199354978,8.21071769,193.86,193.79,2.5822]
[1735199355180,2.5816,193.84,193.79,2.5822]
[1735199355973,8.21071769,193.86,193.8,8.21071769]
[1735199356277,10.79211769,193.86,193.8,10.79281769]
[1735199356482,8.21071769,193.86,193.8,10.79281769]
[1735199357280,2.5816,193.85,193.8,10.79281769]
[1735199358785,2.5816,193.84,193.79,2.5822]
[1735199361284,8.21071769,193.84,193.71,1.6215]
[1735199361479,8.21071769,193.84,193.76,8.21071769]
[1735199361685,8.21071769,193.82,193.74,8.21071769]
[1735199362281,2.5824,193.78,193.74,8.21071769]
[1735199362678,2.5824,193.78,193.73,2.5829]
[1735199362881,2.5824,193.78,193.73,10.79361769]
[1735199363080,8.21071769,193.78,193.71,9.83221769]
[1735199364486,2.5828,193.75,193.71,9.83221769]
[1735199366783,8.21071769,193.78,193.71,9.83221769]
[1735199366975,8.21071769,193.8,193.71,9.83221769]
[1735199367380,2.5825,193.78,193.73,2.5829]
[1735199367586,3.26,193.85,193.73,8.21071769]
[1735199367784,8.21071769,193.81,193.75,2.5827]
[1735199367984,2.5823,193.79,193.75,2.5827]
[1735199369084,18.77,193.85,193.71,1.6215]
[1735199369387,8.21071769,193.77,193.71,1.6215]
[1735199370092,8.21071769,193.79,193.71,9.83221769]
[1735199370799,2.5824,193.78,193.71,9.83221769]
[1735199371689,2.5824,193.78,193.73,2.583]
[1735199372783,2.5824,193.78,193.71,9.83221769]
[1735199373084,2.5824,193.78,193.74,2.5829]
[1735199373689,8.21071769,193.79,193.74,2.5829]
[1735199373883,10.79301769,193.79,193.74,2.5829]
[1735199374087,8.21071769,193.79,193.74,2.5829]
[1735199374290,8.21071769,193.79,193.73,8.21071769]
[1735199374484,2.5825,193.78,193.73,10.79371769]
[1735199374986,8.21071769,193.79,193.71,9.83221769]
[1735199375288,8.21071769,193.77,193.71,1.6215]
[1735199375689,2.5829,193.75,193.71,4.2048]
[1735199376490,8.21071769,193.79,193.73,2.583]
[1735199377291,2.5825,193.78,193.74,2.5829]
[1735199377794,2.5825,193.78,193.74,10.79361769]
[1735199378088,8.21071769,193.81,193.74,8.21071769]
[1735199378293,2.5822,193.8,193.75,2.5827]
[1735199378490,2.5822,193.8,193.74,8.21071769]
[1735199379490,2.5822,193.8,193.76,2.5826]
[1735199379885,2.5824,193.78,193.74,8.21071769]
[1735199380089,8.21071769,193.81,193.74,8.21071769]
[1735199380992,2.5824,193.78,193.74,10.79361769]
[1735199383298,2.5826,193.77,193.74,8.21071769]
[1735199383488,8.21071769,193.81,193.74,8.21071769]
[1735199383889,2.5823,193.79,193.74,8.21071769]
[1735199384896,2.5821,193.8,193.74,8.21071769]
[1735199385702,2.5821,193.8,193.76,2.5825]
[1735199388107,8.21071769,193.83,193.75,8.21071769]
[1735199388406,2.5823,193.79,193.75,10.79351769]
[1735199390506,2.5823,193.79,193.75,8.21071769]
[1735199390707,2.5823,193.79,193.76,2.5826]
[1735199394009,8.21071769,193.83,193.76,2.5826]
[1735199394206,2.5822,193.8,193.76,2.5826]
[1735199394913,8.21071769,193.83,193.73,3.26]
[1735199395210,8.21071769,193.83,193.75,8.21071769]
[1735199396313,8.21071769,193.83,193.77,2.5825]
[1735199397414,2.582,193.82,193.77,2.5825]
[1735199397608,8.21071769,193.83,193.77,2.5825]
[1735199398414,2.5821,193.81,193.77,2.5825]
[1735199400409,28.55606286,193.86,193.79,8.21071769]
[1735199400610,28.55606286,193.86,193.81,8.21071769]
[1735199400814,28.55606286,193.86,193.85,8.21071769]
[1735199401315,28.55606286,193.86,193.83,8.21071769]
[1735199401714,28.55606286,193.91,193.83,8.21071769]
[1735199402105,28.55606286,193.91,193.85,8.21071769]
[1735199402913,36.76678055,193.92,193.85,8.21071769]
[1735199403314,36.76678055,193.92,193.84,2.5815]
[1735199403510,2.5813,193.87,193.82,2.5818]
[1735199403720,8.21071769,193.88,193.82,8.21071769]
[1735199403912,8.21071769,193.88,193.8,13.03401769]
[1735199404116,2.5815,193.85,193.8,13.03401769]
[1735199405518,2.5815,193.85,193.8,15.61611769]
[1735199406419,2.5813,193.86,193.82,2.5818]
[1735199406617,2.5813,193.86,193.82,10.79251769]
[1735199406816,8.21071769,193.88,193.82,8.21071769]
[1735199407420,7.13901571,193.91,193.82,8.21071769]
[1735199407625,7.13901571,193.93,193.86,8.21071769]
[1735199408117,7.13901571,193.93,193.84,8.21071769]
[1735199408118,2.5809,193.89,193.84,8.21071769]
[1735199408517,8.21071769,193.92,193.84,8.21071769]